fUSD/lending_fUSD_20260617
["ID","MTS","AMOUNT","RATE_DAILY","PERIOD"]
[425240807,1781632259000,-394.71,0.0003098,30]
[425240799,1781632259000,-300.0,0.00030859,2]
[425240834,1781632259000,-1177.02206968,0.00031293,7]
[425240838,1781632259000,-952.04163819,0.00031293,7]
[425240836,1781632259000,-937.8804129,0.00031293,7]
[425240833,1781632259000,-943.21716193,0.00031293,7]
[425240835,1781632259000,-958.9513106,0.00031293,7]
[425240841,1781632259000,-1047.65896073,0.00031293,7]
[425240837,1781632259000,-1328.42658803,0.00031293,7]
[425240843,1781632259000,-1207.12,0.00031306,7]
[425240854,1781632259000,-850.172407,0.00031307,7]
[425240853,1781632259000,-850.172407,0.00031307,7]
[425240842,1781632259000,-939.22733664,0.00031293,7]
[425240844,1781632259000,-986.81309936,0.00031306,7]
[425240845,1781632259000,-1183.1824143,0.00031306,7]
[425240846,1781632259000,-967.3992105,0.00031306,7]
[425240847,1781632259000,-1106.20214917,0.00031306,7]
[425240849,1781632259000,-926.19547498,0.00031306,7]
[425240848,1781632259000,-1064.81615047,0.00031306,7]
[425240851,1781632259000,-1029.84141898,0.00031306,7]
[425240803,1781632259000,-200.0,0.000309,11]
[425240852,1781632259000,-850.172407,0.00031307,7]
[425240855,1781632259000,-850.172407,0.00031307,7]
[425240860,1781632259000,-500.0,0.00031322,22]
[425240856,1781632259000,-500.0,0.00031307,30]
[425240857,1781632259000,-343.639898,0.00031307,30]
[425240858,1781632259000,-913.52479872,0.00031311,7]
[425240861,1781632259000,-357.0,0.00031336,30]
[425240859,1781632259000,-973.7848526,0.00031311,7]
[425240839,1781632259000,-986.98379407,0.00031293,7]
[425240829,1781632259000,-150.0,0.00031233,2]
[425240850,1781632259000,-972.6698684,0.00031306,7]
[425240830,1781632259000,-910.98712818,0.0003124,7]
[425240831,1781632259000,-2065.78,0.00031275,2]
[425240804,1781632259000,-649.58,0.00030923,2]
[425240805,1781632259000,-152.0,0.00030939,12]
[425240812,1781632259000,-438.0,0.0003104,30]
[425240809,1781632259000,-346.0,0.0003104,30]
[425240810,1781632259000,-328.0,0.0003104,30]
[425240811,1781632259000,-792.0,0.0003104,30]
[425240806,1781632259000,-801.48,0.0003098,30]
[425240808,1781632259000,-150.0,0.00031011,2]
[425240814,1781632259000,-418.0,0.00031041,30]
[425240815,1781632259000,-304.0,0.00031041,30]
[425240827,1781632259000,-1350.368,0.00031226,28]
[425240817,1781632259000,-2538.0,0.00031041,30]
[425240813,1781632259000,-418.0,0.00031041,30]
[425240818,1781632259000,-1535.0,0.00031051,30]
[425240820,1781632259000,-819.0,0.00031051,30]
[425240832,1781632259000,-954.5430369,0.00031293,2]
[425240828,1781632259000,-292.474,0.00031226,28]
[425240840,1781632259000,-1660.26954978,0.00031293,7]
[425240826,1781632259000,-2065.78,0.00031223,7]
[425240825,1781632259000,-908.10074191,0.00031199,7]
[425240824,1781632259000,-350.0,0.00031185,30]
[425240816,1781632259000,-1853.0,0.00031041,30]
[425240822,1781632259000,-2065.78,0.00031083,2]
[425240819,1781632259000,-335.0,0.00031051,30]
[425240821,1781632259000,-212.0,0.00031051,30]
[425240823,1781632259000,-2065.78,0.00031102,5]
[425240885,1781632260000,-150.0,0.0003161,2]
[425240886,1781632260000,-150.0,0.0003161,2]
[425240887,1781632260000,-150.0,0.0003161,2]
[425240889,1781632260000,-200.0,0.00031658,2]
[425240893,1781632260000,-200.0,0.00031661,2]
[425240894,1781632260000,-200.0,0.00031666,2]
[425240892,1781632260000,-200.0,0.00031661,2]
[425240895,1781632260000,-200.0,0.00031671,2]
[425240890,1781632260000,-200.0,0.0003166,2]
[425240898,1781632260000,-511.67721108,0.00031705,2]
[425240891,1781632260000,-200.0,0.00031661,2]
[425240897,1781632260000,-1396.83280242,0.00031703,30]
[425240896,1781632260000,-511.67721108,0.00031702,2]
[425240901,1781632260000,-511.67721108,0.00031787,2]
[425240899,1781632260000,-2065.78,0.00031717,7]
[425240904,1781632260000,-511.67721108,0.00031875,2]
[425240883,1781632260000,-150.0,0.0003161,2]
[425240902,1781632260000,-511.67721108,0.00031822,2]
[425240888,1781632260000,-200.0,0.00031658,2]
[425240882,1781632260000,-150.0,0.0003161,2]
[425240869,1781632260000,-511.67721108,0.00031439,2]
[425240880,1781632260000,-150.0,0.0003161,2]
[425240900,1781632260000,-2065.78,0.00031727,7]
[425240866,1781632260000,-2886.11,0.000314,7]
[425240867,1781632260000,-730.0,0.00031409,6]
[425240862,1781632260000,-2542.16820703,0.00031336,30]
[425240865,1781632260000,-2065.78,0.00031358,2]
[425240864,1781632260000,-150.31347,0.00031347,2]
[425240863,1781632260000,-2065.78,0.00031339,7]
[425240879,1781632260000,-152.0,0.000316,13]
[425240870,1781632260000,-511.67721108,0.00031451,2]
[425240868,1781632260000,-158.71518379,0.00031438,2]
[425240871,1781632260000,-300.0,0.00031461,30]
[425240874,1781632260000,-1944.57,0.000315,7]
[425240872,1781632260000,-511.67721108,0.00031495,2]
[425240875,1781632260000,-2065.78,0.000315,5]
[425240876,1781632260000,-476.10443138,0.00031504,2]
[425240877,1781632260000,-2739.45,0.00031506,30]
[425240873,1781632260000,-2065.78,0.00031497,2]
[425240878,1781632260000,-191.00000005,0.00031507,15]
[425240881,1781632260000,-150.0,0.0003161,2]
[425240884,1781632260000,-150.0,0.0003161,2]
[425240903,1781632260000,-511.67721108,0.00031823,2]
[425240908,1781632260000,-161.203,0.000319,2]
[425240907,1781632260000,-200.0,0.000319,12]
[425240925,1781632260000,-587.96712675,0.00032,120]
[425240929,1781632260000,-897.06807201,0.00032,120]
[425240932,1781632260000,-400.73050322,0.00032,120]
[425240933,1781632260000,-915.93030031,0.00032,120]
[425240934,1781632260000,-397.71917115,0.00032,120]
[425240935,1781632260000,-1404.81176343,0.00032,120]
[425240936,1781632260000,-192.57435081,0.00032,120]
[425240939,1781632260000,-315.06178872,0.00032,120]
[425240928,1781632260000,-393.84337441,0.00032,120]
[425240937,1781632260000,-173.25366313,0.00032,120]
[425240940,1781632260000,-1416.1462627,0.00032,120]
[425240942,1781632260000,-700.0,0.00032,2]
[425240943,1781632260000,-511.67721108,0.00032006,2]
[425240948,1781632260000,-438.0,0.0003204,30]
[425240945,1781632260000,-346.0,0.0003204,30]
[425240944,1781632260000,-438.59259294,0.0003204,2]
[425240946,1781632260000,-328.0,0.0003204,30]
[425240906,1781632260000,-775.55349719,0.0003188,30]
[425240941,1781632260000,-161.36941318,0.00032,120]
[425240921,1781632260000,-498.08186464,0.00032,120]
[425240938,1781632260000,-177.51975711,0.00032,120]
[425240931,1781632260000,-390.74924321,0.00032,120]
[425240947,1781632260000,-792.0,0.0003204,30]
[425240926,1781632260000,-703.47784449,0.00032,120]
[425240905,1781632260000,-333.0,0.0003188,30]
[425240910,1781632260000,-730.0,0.00031943,7]
[425240909,1781632260000,-150.0,0.00031913,30]
[425240917,1781632260000,-500.0,0.00032,5]
[425240912,1781632260000,-511.67721108,0.00031974,2]
[425240916,1781632260000,-500.0,0.00032,5]
[425240918,1781632260000,-500.0,0.00032,5]
[425240911,1781632260000,-511.67721108,0.00031943,2]
[425240914,1781632260000,-511.67721108,0.00031992,2]
[425240915,1781632260000,-7963.0,0.00032,2]
[425240919,1781632260000,-537.17958309,0.00032,5]
[425240920,1781632260000,-208.71599948,0.00032,120]
[425240923,1781632260000,-179.25244946,0.00032,120]
[425240922,1781632260000,-161.55800474,0.00032,120]
[425240924,1781632260000,-350.94364227,0.00032,120]
[425240913,1781632260000,-500.0,0.00031986,120]
[425240930,1781632260000,-190.91066939,0.00032,120]
[425240927,1781632260000,-387.28659165,0.00032,120]
[425240985,1781632261000,-511.67721108,0.00032344,2]
[425240988,1781632261000,-150.0,0.00032345,2]
[425240986,1781632261000,-213.09479466,0.00032344,14]
[425240987,1781632261000,-150.0,0.00032345,2]
[425240984,1781632261000,-1056.56,0.00032337,2]
[425240981,1781632261000,-1000.0,0.00032337,2]
[425240982,1781632261000,-1084.84,0.00032337,2]
[425240980,1781632261000,-1000.0,0.00032337,2]
[425240989,1781632261000,-150.0,0.00032345,2]
[425240978,1781632261000,-7287.13377454,0.000323,120]
[425240983,1781632261000,-1000.0,0.00032337,2]
[425240992,1781632261000,-150.0,0.00032345,2]
[425241000,1781632261000,-1000.0,0.000325,2]
[425240994,1781632261000,-562.63,0.00032369,2]
[425240996,1781632261000,-2094.74,0.00032371,5]
[425240999,1781632261000,-1000.0,0.000325,120]
[425240995,1781632261000,-1734.78,0.00032371,2]
[425240998,1781632261000,-1168.59,0.00032488,7]
[425240993,1781632261000,-150.0,0.00032345,2]
[425240997,1781632261000,-730.0,0.00032477,7]
[425241002,1781632261000,-1000.0,0.000325,7]
[425241001,1781632261000,-1000.0,0.000325,2]
[425241004,1781632261000,-1000.0,0.000325,14]
[425240979,1781632261000,-997.08,0.00032327,30]
[425240991,1781632261000,-150.0,0.00032345,2]
[425240976,1781632261000,-377.0,0.00032264,2]
[425240955,1781632261000,-335.0,0.00032051,30]
[425240975,1781632261000,-152.0,0.00032262,14]
[425240950,1781632261000,-418.0,0.00032041,30]
[425240954,1781632261000,-1535.0,0.00032051,30]
[425240952,1781632261000,-1853.0,0.00032041,30]
[425240953,1781632261000,-2538.0,0.00032041,30]
[425240951,1781632261000,-304.0,0.00032041,30]
[425240949,1781632261000,-418.0,0.00032041,30]
[425240956,1781632261000,-819.0,0.00032051,30]
[425241008,1781632261000,-511.67721108,0.00032549,2]
[425240957,1781632261000,-212.0,0.00032051,30]
[425240958,1781632261000,-151.0,0.00032051,7]
[425240962,1781632261000,-1438.698432,0.00032166,7]
[425240960,1781632261000,-1438.698432,0.00032166,7]
[425240974,1781632261000,-500.0,0.00032261,23]
[425240961,1781632261000,-1438.698432,0.00032166,7]
[425240959,1781632261000,-151.0,0.00032051,7]
[425240965,1781632261000,-6078.0,0.00032166,2]
[425240963,1781632261000,-1438.698432,0.00032166,7]
[425240967,1781632261000,-1944.57,0.000322,7]
[425240969,1781632261000,-369.71199633,0.00032222,30]
[425240970,1781632261000,-100000.0,0.00032232,7]
[425240968,1781632261000,-2886.11,0.000322,7]
[425240966,1781632261000,-2542.16820703,0.00032192,30]
[425240971,1781632261000,-511.67721108,0.00032233,2]
[425240972,1781632261000,-1131.0,0.0003224,2]
[425240973,1781632261000,-283.0,0.0003224,2]
[425240977,1781632261000,-217.59,0.00032275,11]
[425240964,1781632261000,-419.0,0.00032166,2]
[425241005,1781632261000,-1325.94757332,0.000325,14]
[425240990,1781632261000,-150.0,0.00032345,2]
[425241006,1781632261000,-775.55349719,0.00032503,30]
[425241035,1781632261000,-1065.77893184,0.00032597,7]
[425241042,1781632261000,-511.67721108,0.00032708,2]
[425241038,1781632261000,-166.43,0.00032618,30]
[425241040,1781632261000,-511.67721108,0.00032628,2]
[425241039,1781632261000,-2000.0,0.00032619,7]
[425241043,1781632261000,-3121.78,0.00032721,30]
[425241044,1781632261000,-511.67721108,0.00032725,2]
[425241041,1781632261000,-1396.83280242,0.00032681,30]
[425241045,1781632261000,-511.67721108,0.00032739,2]
[425241047,1781632261000,-668.65185756,0.00032824,2]
[425241055,1781632261000,-500.0,0.00032861,2]
[425241050,1781632261000,-300.0,0.0003284,30]
[425241037,1781632261000,-500.0,0.00032618,30]
[425241054,1781632261000,-500.0,0.00032861,2]
[425241051,1781632261000,-511.67721108,0.00032845,2]
[425241057,1781632261000,-500.0,0.00032861,2]
[425241058,1781632261000,-500.0,0.00032861,2]
[425241052,1781632261000,-500.0,0.00032861,2]
[425241053,1781632261000,-500.0,0.00032861,2]
[425241056,1781632261000,-500.0,0.00032861,2]
[425241060,1781632261000,-500.0,0.00032861,2]
[425241062,1781632261000,-500.0,0.00032861,2]
[425241061,1781632261000,-500.0,0.00032861,2]
[425241059,1781632261000,-500.0,0.00032861,2]
[425241063,1781632261000,-500.0,0.00032861,2]
[425241003,1781632261000,-1000.0,0.000325,7]
[425241048,1781632261000,-151.0,0.00032824,2]
[425241046,1781632261000,-511.67721108,0.00032758,2]
[425241049,1781632261000,-775.4783256,0.00032824,2]
[425241031,1781632261000,-1080.56138748,0.00032592,7]
[425241036,1781632261000,-1136.08232803,0.00032597,7]
[425241009,1781632261000,-5210.0,0.00032559,10]
[425241010,1781632261000,-150.0,0.00032562,2]
[425241012,1781632261000,-426.22,0.00032571,30]
[425241022,1781632261000,-1549.83101936,0.00032578,7]
[425241011,1781632261000,-500.0,0.00032571,30]
[425241015,1781632261000,-500.1,0.00032576,2]
[425241013,1781632261000,-500.1,0.00032576,2]
[425241014,1781632261000,-500.1,0.00032576,2]
[425241017,1781632261000,-1113.63354305,0.00032578,2]
[425241018,1781632261000,-1100.42002225,0.00032578,7]
[425241016,1781632261000,-966.96382278,0.00032576,2]
[425241021,1781632261000,-1094.19381505,0.00032578,7]
[425241007,1781632261000,-511.67721108,0.00032538,2]
[425241019,1781632261000,-1373.19241463,0.00032578,7]
[425241020,1781632261000,-1118.77652904,0.00032578,7]
[425241034,1781632261000,-1201.48165547,0.00032592,7]
[425241032,1781632261000,-1134.78151313,0.00032592,7]
[425241027,1781632261000,-1095.76522608,0.00032578,7]
[425241024,1781632261000,-1151.48109309,0.00032578,7]
[425241033,1781632261000,-1094.40281298,0.00032592,7]
[425241030,1781632261000,-1242.28550888,0.00032592,7]
[425241026,1781632261000,-1222.26878751,0.00032578,7]
[425241029,1781632261000,-1128.63241225,0.00032592,7]
[425241025,1781632261000,-1936.98114141,0.00032578,7]
[425241023,1781632261000,-1110.71524456,0.00032578,7]
[425241028,1781632261000,-1151.28194925,0.00032592,7]
[425241096,1781632262000,-1000.0,0.00032877,10]
[425241099,1781632262000,-1000.0,0.00032877,10]
[425241098,1781632262000,-1000.0,0.00032877,10]
[425241095,1781632262000,-1000.0,0.00032877,10]
[425241105,1781632262000,-1000.0,0.00032877,10]
[425241104,1781632262000,-1000.0,0.00032877,10]
[425241102,1781632262000,-1000.0,0.00032877,10]
[425241094,1781632262000,-1000.0,0.00032877,10]
[425241101,1781632262000,-1000.0,0.00032877,10]
[425241100,1781632262000,-1000.0,0.00032877,10]
[425241103,1781632262000,-1000.0,0.00032877,10]
[425241097,1781632262000,-1000.0,0.00032877,10]
[425241108,1781632262000,-1000.0,0.00032877,10]
[425241106,1781632262000,-1000.0,0.00032877,10]
[425241117,1781632262000,-1000.0,0.00032877,10]
[425241109,1781632262000,-1000.0,0.00032877,10]
[425241111,1781632262000,-1000.0,0.00032877,10]
[425241116,1781632262000,-1000.0,0.00032877,10]
[425241113,1781632262000,-1000.0,0.00032877,10]
[425241112,1781632262000,-1000.0,0.00032877,10]
[425241110,1781632262000,-1000.0,0.00032877,10]
[425241115,1781632262000,-1000.0,0.00032877,10]
[425241118,1781632262000,-1000.0,0.00032877,10]
[425241119,1781632262000,-1000.0,0.00032877,10]
[425241090,1781632262000,-1000.0,0.00032877,10]
[425241114,1781632262000,-1000.0,0.00032877,10]
[425241088,1781632262000,-1000.0,0.00032877,10]
[425241120,1781632262000,-1000.0,0.00032877,10]
[425241091,1781632262000,-1000.0,0.00032877,10]
[425241070,1781632262000,-178.366787,0.00032877,7]
[425241064,1781632262000,-409.92050659,0.00032861,2]
[425241068,1781632262000,-307.93901049,0.00032876,7]
[425241067,1781632262000,-151.5,0.00032876,7]
[425241066,1781632262000,-476.10443138,0.00032873,2]
[425241065,1781632262000,-511.67721108,0.00032866,2]
[425241069,1781632262000,-353.18961976,0.00032876,7]
[425241071,1781632262000,-1000.0,0.00032877,10]
[425241072,1781632262000,-1000.0,0.00032877,10]
[425241081,1781632262000,-1000.0,0.00032877,10]
[425241075,1781632262000,-1000.0,0.00032877,10]
[425241080,1781632262000,-1000.0,0.00032877,10]
[425241089,1781632262000,-1000.0,0.00032877,10]
[425241076,1781632262000,-1000.0,0.00032877,10]
[425241079,1781632262000,-1000.0,0.00032877,10]
[425241082,1781632262000,-1000.0,0.00032877,10]
[425241077,1781632262000,-1000.0,0.00032877,10]
[425241073,1781632262000,-1000.0,0.00032877,10]
[425241074,1781632262000,-1000.0,0.00032877,10]
[425241084,1781632262000,-1000.0,0.00032877,10]
[425241093,1781632262000,-1000.0,0.00032877,10]
[425241092,1781632262000,-1000.0,0.00032877,10]
[425241083,1781632262000,-1000.0,0.00032877,10]
[425241087,1781632262000,-1000.0,0.00032877,10]
[425241085,1781632262000,-1000.0,0.00032877,10]
[425241086,1781632262000,-1000.0,0.00032877,10]
[425241078,1781632262000,-1000.0,0.00032877,10]
[425241123,1781632262000,-1000.0,0.00032877,10]
[425241107,1781632262000,-1000.0,0.00032877,10]
[425241124,1781632262000,-1000.0,0.00032877,10]
[425241158,1781632262000,-151.0,0.00032877,7]
[425241153,1781632262000,-348.953007,0.00032877,7]
[425241162,1781632262000,-227.497261,0.00032877,7]
[425241159,1781632262000,-151.0,0.00032877,7]
[425241161,1781632262000,-151.0,0.00032877,7]
[425241155,1781632262000,-151.0,0.00032877,7]
[425241152,1781632262000,-500.0,0.00032877,7]
[425241154,1781632262000,-500.0,0.00032877,7]
[425241163,1781632262000,-227.497261,0.00032877,7]
[425241157,1781632262000,-237.932367,0.00032877,7]
[425241160,1781632262000,-227.497261,0.00032877,7]
[425241165,1781632262000,-227.497261,0.00032877,7]
[425241156,1781632262000,-151.0,0.00032877,7]
[425241174,1781632262000,-276.683965,0.00032877,7]
[425241164,1781632262000,-234.635032,0.00032877,7]
[425241166,1781632262000,-339.484082,0.00032877,7]
[425241167,1781632262000,-234.635032,0.00032877,7]
[425241168,1781632262000,-339.484082,0.00032877,7]
[425241170,1781632262000,-339.484082,0.00032877,7]
[425241172,1781632262000,-276.683965,0.00032877,7]
[425241169,1781632262000,-234.635032,0.00032877,7]
[425241173,1781632262000,-339.484082,0.00032877,7]
[425241171,1781632262000,-234.635032,0.00032877,7]
[425241176,1781632262000,-151.0,0.00032877,7]
[425241178,1781632262000,-276.683965,0.00032877,7]
[425241179,1781632262000,-151.0,0.00032877,7]
[425241175,1781632262000,-276.683965,0.00032877,7]
[425241151,1781632262000,-348.953007,0.00032877,7]
[425241121,1781632262000,-1000.0,0.00032877,10]
[425241144,1781632262000,-671.0,0.00032877,10]
[425241143,1781632262000,-1000.0,0.00032877,10]
[425241122,1781632262000,-1000.0,0.00032877,10]
[425241125,1781632262000,-1000.0,0.00032877,10]
[425241126,1781632262000,-1000.0,0.00032877,10]
[425241128,1781632262000,-1000.0,0.00032877,10]
[425241127,1781632262000,-1000.0,0.00032877,10]
[425241129,1781632262000,-1000.0,0.00032877,10]
[425241131,1781632262000,-1000.0,0.00032877,10]
[425241130,1781632262000,-1000.0,0.00032877,10]
[425241138,1781632262000,-1000.0,0.00032877,10]
[425241135,1781632262000,-1000.0,0.00032877,10]
[425241137,1781632262000,-1000.0,0.00032877,10]
[425241134,1781632262000,-1000.0,0.00032877,10]
[425241139,1781632262000,-1000.0,0.00032877,10]
[425241132,1781632262000,-1000.0,0.00032877,10]
[425241177,1781632262000,-151.0,0.00032877,7]
[425241140,1781632262000,-1000.0,0.00032877,10]
[425241142,1781632262000,-1000.0,0.00032877,10]
[425241141,1781632262000,-1000.0,0.00032877,10]
[425241149,1781632262000,-348.953007,0.00032877,7]
[425241148,1781632262000,-500.0,0.00032877,7]
[425241145,1781632262000,-151.0,0.00032877,7]
[425241147,1781632262000,-348.953007,0.00032877,7]
[425241146,1781632262000,-151.0,0.00032877,7]
[425241136,1781632262000,-1000.0,0.00032877,10]
[425241133,1781632262000,-1000.0,0.00032877,10]
[425241150,1781632262000,-500.0,0.00032877,7]
[425241215,1781632263000,-151.0,0.00032877,3]
[425241218,1781632263000,-151.0,0.00032877,7]
[425241217,1781632263000,-365.984958,0.00032877,7]
[425241225,1781632263000,-179.639837,0.00032877,7]
[425241203,1781632263000,-182.273075,0.00032877,7]
[425241216,1781632263000,-151.0,0.00032877,3]
[425241211,1781632263000,-431.135298,0.00032877,7]
[425241206,1781632263000,-431.135298,0.00032877,7]
[425241210,1781632263000,-154.360703,0.00032877,7]
[425241219,1781632263000,-151.0,0.00032877,3]
[425241226,1781632263000,-355.712337,0.00032877,7]
[425241220,1781632263000,-365.984958,0.00032877,7]
[425241235,1781632263000,-295.776808,0.00032877,7]
[425241221,1781632263000,-151.0,0.00032877,7]
[425241223,1781632263000,-365.984958,0.00032877,7]
[425241224,1781632263000,-151.0,0.00032877,7]
[425241227,1781632263000,-355.712337,0.00032877,7]
[425241229,1781632263000,-151.0,0.00032877,7]
[425241234,1781632263000,-151.0,0.00032877,7]
[425241231,1781632263000,-151.0,0.00032877,7]
[425241233,1781632263000,-151.0,0.00032877,7]
[425241230,1781632263000,-355.712337,0.00032877,7]
[425241228,1781632263000,-151.0,0.00032877,7]
[425241232,1781632263000,-355.712337,0.00032877,7]
[425241205,1781632263000,-154.360703,0.00032877,7]
[425241222,1781632263000,-365.984958,0.00032877,7]
[425241213,1781632263000,-431.135298,0.00032877,7]
[425241201,1781632263000,-182.273075,0.00032877,7]
[425241214,1781632263000,-151.0,0.00032877,3]
[425241237,1781632263000,-295.776808,0.00032877,7]
[425241182,1781632263000,-318.766613,0.00032877,7]
[425241185,1781632263000,-318.766613,0.00032877,7]
[425241180,1781632263000,-294.481292,0.00032877,7]
[425241183,1781632263000,-294.481292,0.00032877,7]
[425241181,1781632263000,-294.481292,0.00032877,7]
[425241186,1781632263000,-294.481292,0.00032877,7]
[425241187,1781632263000,-151.0,0.00032877,7]
[425241188,1781632263000,-318.766613,0.00032877,7]
[425241190,1781632263000,-151.0,0.00032877,7]
[425241199,1781632263000,-151.0,0.00032877,7]
[425241191,1781632263000,-151.0,0.00032877,7]
[425241212,1781632263000,-154.360703,0.00032877,7]
[425241198,1781632263000,-182.273075,0.00032877,7]
[425241192,1781632263000,-151.0,0.00032877,7]
[425241189,1781632263000,-318.766613,0.00032877,7]
[425241193,1781632263000,-251.606917,0.00032877,7]
[425241194,1781632263000,-151.0,0.00032877,7]
[425241195,1781632263000,-151.0,0.00032877,7]
[425241196,1781632263000,-182.273075,0.00032877,7]
[425241197,1781632263000,-151.0,0.00032877,7]
[425241202,1781632263000,-359.604307,0.00032877,7]
[425241208,1781632263000,-154.360703,0.00032877,7]
[425241209,1781632263000,-431.135298,0.00032877,7]
[425241207,1781632263000,-359.604307,0.00032877,7]
[425241204,1781632263000,-359.604307,0.00032877,7]
[425241200,1781632263000,-359.604307,0.00032877,7]
[425241184,1781632263000,-151.0,0.00032877,7]
[425241238,1781632263000,-295.776808,0.00032877,7]
[425241245,1781632263000,-413.364487,0.00032877,7]
[425241265,1781632263000,-151.0,0.00032877,7]
[425241266,1781632263000,-257.193721,0.00032877,7]
[425241267,1781632263000,-151.0,0.00032877,7]
[425241273,1781632263000,-303.471344,0.00032877,7]
[425241275,1781632263000,-303.471344,0.00032877,7]
[425241274,1781632263000,-159.216083,0.00032877,7]
[425241277,1781632263000,-178.676286,0.00032877,7]
[425241281,1781632263000,-159.216083,0.00032877,7]
[425241283,1781632263000,-178.676286,0.00032877,7]
[425241280,1781632263000,-178.676286,0.00032877,7]
[425241282,1781632263000,-178.676286,0.00032877,7]
[425241276,1781632263000,-159.216083,0.00032877,7]
[425241268,1781632263000,-151.0,0.00032877,7]
[425241279,1781632263000,-159.216083,0.00032877,7]
[425241285,1781632263000,-198.238538,0.00032877,7]
[425241286,1781632263000,-198.238538,0.00032877,7]
[425241287,1781632263000,-151.0,0.00032877,7]
[425241288,1781632263000,-151.0,0.00032877,7]
[425241289,1781632263000,-198.238538,0.00032877,7]
[425241290,1781632263000,-151.0,0.00032877,7]
[425241293,1781632263000,-151.0,0.00032877,7]
[425241291,1781632263000,-260.180583,0.00032877,7]
[425241292,1781632263000,-198.238538,0.00032877,7]
[425241294,1781632263000,-151.0,0.00032877,7]
[425241295,1781632263000,-374.734968,0.00032877,7]
[425241236,1781632263000,-151.0,0.00032877,7]
[425241284,1781632263000,-351.75,0.00032877,2]
[425241269,1781632263000,-257.193721,0.00032877,7]
[425241278,1781632263000,-303.471344,0.00032877,7]
[425241272,1781632263000,-303.471344,0.00032877,7]
[425241264,1781632263000,-257.193721,0.00032877,7]
[425241248,1781632263000,-151.0,0.00032877,7]
[425241240,1781632263000,-185.321464,0.00032877,7]
[425241241,1781632263000,-185.321464,0.00032877,7]
[425241246,1781632263000,-413.364487,0.00032877,7]
[425241249,1781632263000,-151.0,0.00032877,7]
[425241239,1781632263000,-295.776808,0.00032877,7]
[425241242,1781632263000,-185.321464,0.00032877,7]
[425241243,1781632263000,-185.321464,0.00032877,7]
[425241247,1781632263000,-413.364487,0.00032877,7]
[425241250,1781632263000,-151.0,0.00032877,7]
[425241253,1781632263000,-151.0,0.00032877,7]
[425241260,1781632263000,-151.0,0.00032877,7]
[425241244,1781632263000,-413.364487,0.00032877,7]
[425241256,1781632263000,-285.509618,0.00032877,7]
[425241258,1781632263000,-285.509618,0.00032877,7]
[425241270,1781632263000,-151.0,0.00032877,7]
[425241263,1781632263000,-151.0,0.00032877,7]
[425241271,1781632263000,-257.193721,0.00032877,7]
[425241262,1781632263000,-151.0,0.00032877,7]
[425241255,1781632263000,-151.0,0.00032877,7]
[425241261,1781632263000,-285.509618,0.00032877,7]
[425241254,1781632263000,-151.0,0.00032877,7]
[425241251,1781632263000,-172.325941,0.00032877,7]
[425241252,1781632263000,-151.0,0.00032877,7]
[425241257,1781632263000,-285.214341,0.00032877,7]
[425241259,1781632263000,-285.509618,0.00032877,7]
[425241333,1781632264000,-317.681492,0.00032877,7]
[425241335,1781632264000,-2583.908202,0.00032877,7]
[425241339,1781632264000,-2583.908202,0.00032877,7]
[425241327,1781632264000,-151.0,0.00032877,7]
[425241334,1781632264000,-1382.607938,0.00032877,7]
[425241332,1781632264000,-3998.243273,0.00032877,7]